fUSD/lending_fUSD_20250103
["ID","MTS","AMOUNT","RATE_DAILY","PERIOD"]
[347547973,1735913442084,-500.0,8.978e-05,2]
[347547975,1735913442093,-880.0,8.978e-05,2]
[347547977,1735913442102,-616.52,8.978e-05,2]
[347547979,1735913442112,-500.0,8.978e-05,2]
[347547981,1735913442121,-500.0,8.978e-05,2]
[347547983,1735913442131,-602.78,8.978e-05,2]
[347547984,1735913442140,-755.26,8.978e-05,2]
[347548013,1735913442404,-500.0,8.978e-05,2]
[347548015,1735913442415,-500.0,8.978e-05,2]
[347548017,1735913442425,-546.67,8.978e-05,2]
[347548019,1735913442434,-500.0,8.978e-05,2]
[347548022,1735913442444,-500.0,8.978e-05,2]
[347548023,1735913442453,-566.12,8.978e-05,2]
[347548025,1735913442463,-542.7,8.978e-05,2]
[347548028,1735913442472,-845.64,8.978e-05,2]
[347548030,1735913442481,-639.71,8.978e-05,2]
[347548032,1735913442491,-500.0,8.978e-05,2]
[347548034,1735913442500,-500.0,8.978e-05,2]
[347548035,1735913442509,-500.0,8.978e-05,2]
[347548037,1735913442519,-656.05,8.978e-05,2]
[347548040,1735913442531,-500.0,8.978e-05,2]
[347548041,1735913442540,-565.64,8.978e-05,2]
[347548044,1735913442550,-1116.53,8.978e-05,2]
[347548045,1735913442560,-500.0,8.978e-05,2]
[347548047,1735913442568,-1015.21,8.978e-05,2]
[347548049,1735913442578,-500.0,8.978e-05,2]
[347548051,1735913442587,-909.42,8.978e-05,2]
[347548053,1735913442597,-500.0,8.978e-05,2]
[347548055,1735913442606,-500.0,8.978e-05,2]
[347548057,1735913442615,-522.87,8.978e-05,2]
[347548059,1735913442626,-500.0,8.978e-05,2]
[347548062,1735913442635,-779.21,8.978e-05,2]
[347548063,1735913442645,-1388.32,8.978e-05,2]
[347548065,1735913442654,-500.0,8.978e-05,2]
[347548068,1735913442665,-681.68,8.978e-05,2]
[347548069,1735913442675,-500.0,8.978e-05,2]
[347548072,1735913442684,-500.0,8.978e-05,2]
[347548073,1735913442694,-500.0,8.978e-05,2]
[347548075,1735913442704,-4323.21,8.978e-05,2]
[347548077,1735913442713,-588.17,8.978e-05,2]
[347548079,1735913442722,-500.0,8.978e-05,2]
[347548081,1735913442732,-1932.63,8.978e-05,2]
[347548084,1735913442741,-2492.6,8.978e-05,2]
[347548086,1735913442751,-810.7,8.978e-05,2]
[347548090,1735913442760,-2757.82,8.978e-05,2]
[347548092,1735913442771,-500.0,8.978e-05,2]
[347548095,1735913442780,-500.0,8.978e-05,2]
[347548097,1735913442790,-700.03,8.978e-05,2]
[347548100,1735913442799,-626.45,8.978e-05,2]
[347548101,1735913442809,-338.94534626,8.978e-05,2]
[347548104,1735913442818,-500.0,8.978e-05,2]
[347548106,1735913442829,-500.0,8.978e-05,2]
[347548108,1735913442839,-4728.18,8.978e-05,2]
[347548110,1735913442848,-500.0,8.978e-05,2]
[347548111,1735913442857,-500.0,8.979e-05,2]
[347548113,1735913442867,-660.78,8.979e-05,2]
[347548115,1735913442876,-500.0,8.979e-05,2]
[347548120,1735913442886,-500.0,8.979e-05,2]
[347548123,1735913442895,-500.0,8.979e-05,2]
[347548126,1735913442906,-500.0,8.979e-05,2]
[347548129,1735913442916,-500.0,8.979e-05,2]
[347548133,1735913442925,-500.0,8.979e-05,2]
[347548135,1735913442935,-500.0,8.979e-05,2]
[347548138,1735913442945,-500.0,8.979e-05,2]
[347548140,1735913442954,-345.40617074,8.979e-05,2]
[347548142,1735913442964,-500.0,8.979e-05,2]
[347548144,1735913442973,-500.0,8.979e-05,2]
[347548145,1735913442983,-583.48,8.979e-05,2]
[347548147,1735913442992,-500.0,8.979e-05,2]
[347548149,1735913443002,-500.0,8.979e-05,2]
[347548151,1735913443011,-500.0,8.979e-05,2]
[347548153,1735913443021,-500.0,8.979e-05,2]
[347548155,1735913443032,-500.0,8.979e-05,2]
[347548157,1735913443041,-500.0,8.979e-05,2]
[347548159,1735913443050,-500.0,8.979e-05,2]
[347548161,1735913443060,-500.0,8.979e-05,2]
[347548164,1735913443070,-500.0,8.979e-05,2]
[347548165,1735913443079,-500.0,8.979e-05,2]
[347548167,1735913443088,-500.0,8.979e-05,2]
[347548170,1735913443098,-500.0,8.979e-05,2]
[347548172,1735913443108,-500.0,8.979e-05,2]
[347548174,1735913443117,-500.0,8.979e-05,2]
[347548175,1735913443129,-500.0,8.979e-05,2]
[347548178,1735913443138,-510.91,8.979e-05,2]
[347548179,1735913443148,-500.0,8.979e-05,2]
[347548181,1735913443157,-239.31702162,8.979e-05,2]
[347548183,1735913443167,-500.0,8.979e-05,2]
[347548185,1735913443176,-722.05,8.979e-05,2]
[347548187,1735913443185,-500.0,8.979e-05,2]
[347548189,1735913443195,-500.0,8.979e-05,2]
[347548191,1735913443204,-500.0,8.979e-05,7]
[347548193,1735913443214,-500.0,8.979e-05,2]
[347548195,1735913443223,-500.0,8.979e-05,2]
[347548197,1735913443232,-500.0,8.979e-05,2]
[347548199,1735913443241,-500.0,8.979e-05,2]
[347548201,1735913443251,-500.0,8.979e-05,2]
[347548203,1735913443260,-546.58,8.979e-05,2]
[347548205,1735913443270,-500.0,8.979e-05,2]
[347548208,1735913443280,-231.55265495,8.979e-05,2]
[347548209,1735913443289,-500.0,8.979e-05,2]
[347548211,1735913443298,-500.0,8.979e-05,2]
[347548213,1735913443308,-500.0,8.979e-05,2]
[347548215,1735913443320,-269.55199541,8.979e-05,2]
[347548217,1735913443329,-513.39,8.979e-05,2]
[347548219,1735913443339,-500.0,8.979e-05,2]
[347548221,1735913443348,-500.0,8.979e-05,2]
[347548223,1735913443358,-500.0,8.979e-05,2]
[347548225,1735913443368,-500.0,8.979e-05,2]
[347548228,1735913443377,-599.9,8.979e-05,2]
[347548229,1735913443386,-500.0,8.979e-05,2]
[347548231,1735913443397,-500.0,8.979e-05,2]
[347548233,1735913443407,-500.0,8.979e-05,2]
[347548235,1735913443416,-552.0531883,8.979e-05,2]
[347548237,1735913443426,-532.82,8.979e-05,2]
[347548240,1735913443435,-500.0,8.979e-05,2]
[347548241,1735913443445,-729.26,8.979e-05,2]
[347548243,1735913443455,-500.0,8.979e-05,2]
[347548246,1735913443464,-500.0,8.979e-05,2]
[347548248,1735913443474,-586.77,8.979e-05,2]
[347548249,1735913443483,-500.0,8.979e-05,2]
[347548251,1735913443493,-579.56,8.979e-05,2]
[347548254,1735913443504,-500.0,8.979e-05,2]
[347548256,1735913443513,-500.0,8.979e-05,2]
[347548257,1735913443524,-500.0,8.979e-05,2]
[347548258,1735913443534,-500.0,8.979e-05,2]
[347548259,1735913443544,-500.0,8.979e-05,2]
[347548260,1735913443555,-500.0,8.979e-05,2]
[347548261,1735913443564,-630.15,8.979e-05,2]
[347548262,1735913443573,-500.0,8.979e-05,2]
[347548263,1735913443582,-608.34283226,8.979e-05,2]
[347548264,1735913443592,-500.0,8.979e-05,2]
[347548265,1735913443601,-500.0,8.979e-05,2]
[347548266,1735913443611,-638.05,8.979e-05,2]
[347548267,1735913443620,-500.0,8.979e-05,2]
[347548269,1735913443631,-500.0,8.979e-05,2]
[347548271,1735913443640,-500.0,8.979e-05,2]
[347548273,1735913443649,-724.86,8.979e-05,2]
[347548275,1735913443659,-500.0,8.979e-05,2]
[347548277,1735913443668,-500.0,8.979e-05,2]
[347548279,1735913443677,-500.0,8.979e-05,2]
[347548281,1735913443687,-500.0,8.979e-05,2]
[347548283,1735913443697,-500.0,8.979e-05,2]
[347548285,1735913443707,-589.27,8.979e-05,2]
[347548287,1735913443716,-500.0,8.979e-05,2]
[347548289,1735913443726,-500.0,8.979e-05,2]
[347548291,1735913443735,-500.0,8.979e-05,2]
[347548293,1735913443744,-728.38,8.979e-05,2]
[347548295,1735913443754,-500.0,8.979e-05,2]
[347548297,1735913443764,-500.0,8.979e-05,2]
[347548299,1735913443774,-500.0,8.979e-05,2]
[347548301,1735913443783,-643.87,8.979e-05,2]
[347548303,1735913443792,-507.49,8.979e-05,2]
[347548305,1735913443801,-500.0,8.979e-05,2]
[347548307,1735913443810,-817.48,8.979e-05,2]
[347548309,1735913443820,-500.0,8.979e-05,2]
[347548311,1735913443829,-500.0,8.979e-05,2]
[347548312,1735913443839,-150.0,8.988e-05,2]
[347548315,1735913443848,-150.0,8.988e-05,2]
[347548317,1735913443858,-648.99,8.999e-05,2]
[347548319,1735913443867,-4539.25,8.999e-05,2]
[347548320,1735913443877,-669.92,8.999e-05,2]
[347548322,1735913443886,-500.0,8.999e-05,2]
[347548324,1735913443895,-945.01,8.999e-05,2]
[347548326,1735913443905,-403138.57035999,9e-05,2]
[347548329,1735913443914,-5000.0,9e-05,2]
[347548330,1735913443924,-600.0,9e-05,3]
[347548332,1735913443933,-420.0,9.04e-05,2]
[347548334,1735913443942,-150.0,9.084e-05,2]
[347548336,1735913443951,-150.0,9.084e-05,2]
[347548338,1735913443960,-311.904,9.1e-05,2]
[347548340,1735913443969,-497.58,9.108e-05,2]
[347548342,1735913443978,-2305.8,9.152e-05,2]
[347548344,1735913443987,-1284.19,9.152e-05,2]
[347548346,1735913443996,-965.97,9.152e-05,2]
[347548348,1735913444005,-500.0,9.152e-05,2]
[347548350,1735913444014,-1276.95,9.152e-05,2]
[347548352,1735913444024,-2589.54,9.152e-05,2]
[347548354,1735913444033,-4219.32,9.152e-05,2]
[347548356,1735913444042,-3842.99,9.152e-05,2]
[347548358,1735913444051,-5070.29,9.152e-05,2]
[347548360,1735913444060,-500.0,9.152e-05,2]
[347548362,1735913444068,-965.57,9.152e-05,2]
[347548364,1735913444077,-1809.86,9.152e-05,2]
[347548366,1735913444086,-3930.61,9.152e-05,2]
[347548368,1735913444095,-590.66,9.152e-05,2]
[347548370,1735913444104,-1506.57,9.152e-05,2]
[347548372,1735913444114,-500.0,9.152e-05,2]
[347548374,1735913444123,-809.49,9.153e-05,2]
[347548376,1735913444132,-150.0,9.179e-05,2]
[347548378,1735913444142,-150.0,9.179e-05,2]
[347548380,1735913444151,-619.12,9.236e-05,2]
[347548382,1735913444160,-150.0,9.243e-05,2]
[347548383,1735913444169,-1000.0,9.247e-05,2]
[347548385,1735913444179,-626.75,9.251e-05,2]
[347548387,1735913444188,-608.12,9.251e-05,2]
[347548390,1735913444197,-1031.27,9.251e-05,2]
[347548392,1735913444207,-500.0,9.251e-05,2]
[347548394,1735913444216,-705.29,9.251e-05,2]
[347548395,1735913444225,-854.79,9.251e-05,2]
[347548398,1735913444235,-500.0,9.251e-05,2]
[347548400,1735913444244,-828.11,9.251e-05,2]
[347548402,1735913444253,-717.9,9.251e-05,2]
[347548403,1735913444262,-539.22,9.251e-05,2]
[347548406,1735913444273,-768.58,9.251e-05,2]
[347548407,1735913444282,-1740.14,9.251e-05,2]
[347548409,1735913444291,-500.0,9.251e-05,2]
[347548411,1735913444300,-500.0,9.251e-05,2]
[347548413,1735913444309,-613.37,9.251e-05,2]
[347548415,1735913444322,-500.0,9.251e-05,2]
[347548417,1735913444331,-583.31,9.251e-05,2]
[347548420,1735913444340,-1050.53,9.251e-05,2]
[347548422,1735913444350,-500.0,9.251e-05,2]
[347548423,1735913444359,-500.0,9.251e-05,2]
[347548425,1735913444368,-811.4,9.251e-05,2]
[347548427,1735913444377,-638.42,9.251e-05,2]
[347548429,1735913444386,-951.47,9.251e-05,2]
[347548431,1735913444396,-500.0,9.251e-05,2]
[347548433,1735913444405,-500.0,9.251e-05,2]
[347548435,1735913444413,-500.0,9.251e-05,2]
[347548437,1735913444422,-1412.72,9.251e-05,2]
[347548439,1735913444431,-1257.66,9.251e-05,2]
[347548441,1735913444441,-500.0,9.251e-05,2]
[347548443,1735913444450,-500.0,9.251e-05,2]
[347548445,1735913444459,-500.0,9.251e-05,2]
[347548447,1735913444468,-1028.46,9.251e-05,2]
[347548449,1735913444477,-511.34,9.251e-05,2]
[347548451,1735913444486,-999.21,9.251e-05,2]
[347548453,1735913444496,-822.4,9.251e-05,2]
[347548455,1735913444505,-500.0,9.251e-05,2]
[347548457,1735913444514,-536.73,9.251e-05,2]
[347548459,1735913444524,-544.45,9.251e-05,2]
[347548461,1735913444534,-567.06,9.251e-05,2]
[347548463,1735913444543,-500.0,9.251e-05,2]
[347548465,1735913444553,-500.0,9.251e-05,2]
[347548467,1735913444562,-553.32,9.251e-05,2]
[347548469,1735913444571,-500.0,9.251e-05,2]
[347548471,1735913444580,-519.82,9.251e-05,2]
[347548473,1735913444589,-500.0,9.251e-05,2]
[347548475,1735913444598,-500.0,9.251e-05,2]
[347548477,1735913444607,-765.62,9.251e-05,2]
[347548479,1735913444616,-500.0,9.251e-05,2]
[347548481,1735913444626,-623.53,9.251e-05,2]
[347548483,1735913444636,-655.32,9.251e-05,2]
[347548485,1735913444645,-1043.08,9.251e-05,2]
[347548487,1735913444654,-2317.13,9.251e-05,2]
[347548489,1735913444663,-1078.56,9.251e-05,2]
[347548491,1735913444672,-967.56,9.251e-05,2]
[347548493,1735913444681,-1942.46,9.251e-05,2]
[347548495,1735913444691,-1071.25,9.251e-05,2]
[347548497,1735913444700,-500.0,9.251e-05,2]
[347548499,1735913444709,-500.0,9.251e-05,2]
[347548501,1735913444719,-4630.03,9.251e-05,2]
[347548503,1735913444728,-514.03,9.251e-05,2]
[347548505,1735913444737,-843.34,9.251e-05,2]
[347548507,1735913444746,-794.16,9.251e-05,2]
[347548509,1735913444756,-500.0,9.251e-05,2]
[347548511,1735913444765,-500.0,9.251e-05,2]
[347548513,1735913444775,-816.53,9.251e-05,2]
[347548515,1735913444784,-766.16,9.251e-05,2]
[347548517,1735913444793,-980.39,9.251e-05,2]
[347548519,1735913444802,-500.0,9.251e-05,2]
[347548521,1735913444811,-663.21,9.251e-05,2]
[347548523,1735913444820,-663.36,9.251e-05,2]
[347548525,1735913444829,-1985.94,9.251e-05,2]
[347548527,1735913444838,-1430.45,9.251e-05,2]
[347548529,1735913444847,-726.86,9.251e-05,2]
[347548531,1735913444856,-500.0,9.251e-05,2]
[347548533,1735913444865,-882.78,9.251e-05,2]
[347548535,1735913444874,-1568.97,9.251e-05,2]
[347548537,1735913444883,-500.0,9.251e-05,2]
[347548539,1735913444892,-2876.97,9.251e-05,2]
[347548541,1735913444901,-1847.56,9.251e-05,2]
[347548543,1735913444910,-1434.31,9.251e-05,2]
[347548545,1735913444919,-1462.33,9.251e-05,2]
[347548547,1735913444928,-1166.74,9.251e-05,2]
[347548548,1735913444937,-2866.12,9.251e-05,2]
[347548550,1735913444946,-2403.46,9.251e-05,2]
[347548552,1735913444956,-202.27,9.251e-05,2]
[347548554,1735913444965,-598.26,9.251e-05,2]
[347548556,1735913444974,-500.0,9.251e-05,2]
[347548558,1735913444983,-500.0,9.251e-05,2]
[347548560,1735913444992,-704.51,9.251e-05,2]
[347548562,1735913445001,-3527.39,9.251e-05,2]
[347548564,1735913445010,-1048.69,9.251e-05,2]
[347548566,1735913445019,-862.27,9.251e-05,2]
[347548568,1735913445029,-544.24,9.251e-05,2]
[347548570,1735913445038,-788.51,9.251e-05,2]
[347548572,1735913445047,-500.0,9.251e-05,2]
[347548574,1735913445057,-500.0,9.251e-05,2]
[347548576,1735913445066,-671.55,9.251e-05,2]
[347548578,1735913445076,-1628.97,9.251e-05,2]
[347548580,1735913445085,-1628.97,9.251e-05,2]
[347548582,1735913445094,-875.5,9.251e-05,2]
[347548584,1735913445103,-626.48,9.251e-05,2]
[347548586,1735913445113,-500.0,9.251e-05,2]
[347548588,1735913445122,-500.0,9.251e-05,2]
[347548590,1735913445132,-1623.4,9.251e-05,2]
[347548592,1735913445142,-500.0,9.251e-05,2]
[347548594,1735913445152,-2958.01,9.251e-05,2]
[347548596,1735913445161,-500.0,9.251e-05,2]
[347548598,1735913445170,-923.94,9.251e-05,2]
[347548600,1735913445180,-3402.3,9.251e-05,2]
[347548602,1735913445190,-162.31114575,9.251e-05,2]
[347548604,1735913445199,-500.0,9.252e-05,2]
[347548606,1735913445208,-500.0,9.252e-05,2]
[347548608,1735913445217,-500.0,9.252e-05,2]
[347548610,1735913445227,-500.0,9.252e-05,2]
[347548612,1735913445238,-500.0,9.252e-05,2]
[347548614,1735913445247,-500.0,9.252e-05,2]
[347548616,1735913445256,-558.32,9.252e-05,2]
[347548618,1735913445266,-500.0,9.252e-05,2]
[347548620,1735913445277,-500.0,9.252e-05,2]
[347548622,1735913445286,-500.0,9.252e-05,2]
[347548624,1735913445296,-500.0,9.252e-05,2]
[347548626,1735913445305,-500.0,9.252e-05,2]
[347548628,1735913445317,-927.73,9.252e-05,2]
[347548630,1735913445327,-500.0,9.252e-05,2]
[347548632,1735913445336,-500.0,9.252e-05,2]
[347548634,1735913445346,-782.75,9.252e-05,2]
[347548636,1735913445357,-708.77,9.252e-05,2]
[347548638,1735913445366,-500.0,9.252e-05,2]
[347548641,1735913445376,-552.4,9.252e-05,2]
[347548642,1735913445385,-622.14,9.252e-05,2]
[347548645,1735913445396,-500.0,9.252e-05,2]
[347548647,1735913445408,-500.0,9.252e-05,2]
[347548649,1735913445417,-500.0,9.252e-05,2]
[347548651,1735913445426,-500.0,9.252e-05,2]
[347548653,1735913445435,-500.0,9.252e-05,2]
[347548655,1735913445444,-500.0,9.252e-05,2]
[347548657,1735913445453,-500.0,9.252e-05,2]
[347548659,1735913445462,-500.0,9.252e-05,2]
[347548661,1735913445471,-500.0,9.252e-05,2]
[347548663,1735913445481,-500.0,9.252e-05,2]
[347548665,1735913445493,-500.0,9.252e-05,2]
[347548667,1735913445502,-500.0,9.252e-05,2]
[347548669,1735913445511,-651.38,9.252e-05,2]
[347548671,1735913445520,-500.0,9.252e-05,2]
[347548673,1735913445532,-500.0,9.252e-05,2]
[347548675,1735913445542,-500.0,9.252e-05,2]
[347548677,1735913445551,-500.0,9.252e-05,2]
[347548679,1735913445560,-736.99,9.252e-05,2]
[347548681,1735913445569,-500.0,9.252e-05,2]
[347548683,1735913445578,-500.0,9.252e-05,2]
[347548684,1735913445588,-500.0,9.252e-05,2]
[347548685,1735913445597,-664.77,9.252e-05,2]
[347548686,1735913445607,-500.0,9.252e-05,2]
[347548687,1735913445615,-500.0,9.252e-05,2]
[347548688,1735913445625,-500.0,9.252e-05,2]
[347548689,1735913445634,-500.0,9.252e-05,2]
[347548690,1735913445644,-500.0,9.252e-05,2]
[347548691,1735913445654,-500.0,9.252e-05,2]
[347548692,1735913445663,-500.0,9.252e-05,2]
[347548693,1735913445672,-500.0,9.252e-05,2]
[347548694,1735913445681,-1420.12,9.252e-05,2]
[347548696,1735913445690,-500.0,9.252e-05,2]
[347548698,1735913445700,-526.38,9.252e-05,2]
[347548700,1735913445709,-500.0,9.252e-05,2]
[347548702,1735913445718,-500.0,9.252e-05,2]
[347548704,1735913445727,-500.0,9.252e-05,2]
[347548706,1735913445736,-500.0,9.252e-05,2]
[347548708,1735913445746,-500.0,9.252e-05,2]
[347548710,1735913445755,-562.13,9.252e-05,2]
[347548712,1735913445766,-546.38,9.252e-05,2]
[347548714,1735913445776,-681.97,9.252e-05,2]
[347548717,1735913445786,-500.0,9.252e-05,2]
[347548719,1735913445796,-500.0,9.252e-05,2]
[347548721,1735913445805,-1390.36,9.252e-05,2]
[347548723,1735913445814,-540.37,9.252e-05,2]
[347548726,1735913445823,-504.44,9.252e-05,2]
[347548728,1735913445833,-500.0,9.252e-05,2]
[347548730,1735913445842,-770.82,9.252e-05,2]
[347548732,1735913445851,-500.0,9.252e-05,2]
[347548734,1735913445861,-999.6,9.252e-05,2]
[347548736,1735913445870,-500.0,9.252e-05,2]
[347548738,1735913445879,-500.0,9.252e-05,2]
[347548740,1735913445889,-500.0,9.252e-05,2]
[347548742,1735913445899,-500.0,9.252e-05,2]
[347548744,1735913445908,-500.0,9.252e-05,2]
[347548746,1735913445917,-500.0,9.252e-05,2]
[347548748,1735913445927,-818.72,9.252e-05,2]
[347548750,1735913445936,-500.0,9.252e-05,2]
[347548752,1735913445945,-500.0,9.252e-05,2]
[347548754,1735913445954,-1476.13,9.252e-05,2]
[347548756,1735913445963,-500.0,9.252e-05,2]
[347548758,1735913445974,-550.53,9.252e-05,2]
[347548760,1735913445983,-500.0,9.252e-05,2]
[347548762,1735913445992,-566.14,9.252e-05,2]
[347548764,1735913446002,-500.0,9.252e-05,2]
[347548766,1735913446011,-500.0,9.252e-05,2]
[347548768,1735913446020,-3834.5,9.252e-05,2]
[347548770,1735913446031,-500.0,9.252e-05,2]
[347548772,1735913446040,-500.0,9.252e-05,2]
[347548774,1735913446050,-849.66,9.252e-05,2]
[347548776,1735913446059,-540.11784156,9.252e-05,2]
[347548778,1735913446069,-500.0,9.252e-05,2]
[347548779,1735913446078,-500.0,9.252e-05,2]
[347548781,1735913446087,-701.93,9.252e-05,2]
[347548783,1735913446096,-580.29,9.252e-05,2]
[347548785,1735913446105,-500.0,9.252e-05,2]
[347548787,1735913446114,-500.0,9.252e-05,2]
[347548789,1735913446124,-500.0,9.252e-05,2]
[347548792,1735913446133,-500.0,9.252e-05,2]
[347548793,1735913446142,-500.0,9.252e-05,2]
[347548795,1735913446151,-3020.2,9.252e-05,2]
[347548798,1735913446161,-500.0,9.252e-05,2]
[347548800,1735913446171,-744.66,9.252e-05,2]
[347548802,1735913446179,-615.34,9.252e-05,2]
[347548804,1735913446189,-572.76,9.252e-05,2]
[347548806,1735913446198,-500.0,9.252e-05,2]
[347548808,1735913446207,-500.0,9.252e-05,2]
[347548810,1735913446216,-500.0,9.252e-05,2]
[347548812,1735913446226,-500.0,9.252e-05,2]
[347548814,1735913446235,-562.66,9.252e-05,2]
[347548815,1735913446244,-639.62,9.252e-05,2]
[347548817,1735913446253,-633.45,9.252e-05,2]
[347548819,1735913446263,-939.85,9.252e-05,2]
[347548821,1735913446273,-500.0,9.252e-05,2]
[347548824,1735913446282,-500.0,9.252e-05,2]
[347548826,1735913446291,-569.06,9.252e-05,2]
[347548828,1735913446300,-500.0,9.252e-05,2]
[347548851,1735913446510,-500.0,9.252e-05,2]
[347548853,1735913446519,-690.4,9.252e-05,2]
[347548855,1735913446530,-500.0,9.252e-05,2]
[347548857,1735913446542,-500.0,9.252e-05,2]
[347548859,1735913446551,-500.0,9.252e-05,2]
[347548861,1735913446561,-500.0,9.252e-05,2]
[347548863,1735913446570,-880.0,9.252e-05,2]
[347548865,1735913446579,-616.52,9.252e-05,2]
[347548867,1735913446588,-500.0,9.252e-05,2]
[347548869,1735913446599,-500.0,9.252e-05,2]
[347548871,1735913446610,-602.78,9.252e-05,2]
[347548872,1735913446620,-755.26,9.252e-05,2]
[347548873,1735913446630,-500.0,9.252e-05,2]
[347548874,1735913446639,-500.0,9.252e-05,2]
[347548875,1735913446649,-546.67,9.252e-05,2]
[347548876,1735913446659,-500.0,9.252e-05,2]
[347548877,1735913446668,-500.0,9.252e-05,2]
[347548878,1735913446677,-542.7,9.252e-05,2]
[347548879,1735913446687,-566.12,9.252e-05,2]
[347548880,1735913446696,-845.64,9.252e-05,2]
[347548881,1735913446706,-639.71,9.252e-05,2]
[347548882,1735913446715,-500.0,9.252e-05,2]
[347548883,1735913446725,-500.0,9.252e-05,2]
[347548884,1735913446735,-500.0,9.252e-05,2]
[347548885,1735913446744,-656.05,9.252e-05,2]
[347548886,1735913446753,-500.0,9.252e-05,2]
[347548887,1735913446762,-565.64,9.252e-05,2]
[347548888,1735913446773,-1116.53,9.252e-05,2]
[347548889,1735913446782,-500.0,9.252e-05,2]
[347548890,1735913446791,-1015.21,9.252e-05,2]
[347548891,1735913446801,-500.0,9.252e-05,2]
[347548892,1735913446810,-909.42,9.252e-05,2]
[347548893,1735913446819,-500.0,9.252e-05,2]
[347548894,1735913446830,-500.0,9.252e-05,2]
[347548895,1735913446840,-522.87,9.252e-05,2]
[347548896,1735913446849,-500.0,9.252e-05,2]
[347548897,1735913446858,-779.21,9.252e-05,2]
[347548898,1735913446868,-1388.32,9.252e-05,2]
[347548899,1735913446877,-681.68,9.252e-05,2]
[347548900,1735913446886,-500.0,9.252e-05,2]
[347548901,1735913446895,-500.0,9.252e-05,2]
[347548902,1735913446905,-500.0,9.252e-05,2]
[347548903,1735913446915,-4323.21,9.252e-05,2]
[347548904,1735913446925,-588.17,9.252e-05,2]
[347548905,1735913446935,-500.0,9.252e-05,2]
[347548906,1735913446944,-1932.63,9.252e-05,2]
[347548907,1735913446953,-2492.6,9.252e-05,2]
[347548908,1735913446963,-810.7,9.252e-05,2]
[347548909,1735913446973,-2757.82,9.252e-05,2]
[347548910,1735913446982,-500.0,9.252e-05,2]
[347548911,1735913446991,-500.0,9.252e-05,2]
[347548912,1735913447001,-626.45,9.252e-05,2]
[347548913,1735913447011,-700.03,9.252e-05,2]
[347548914,1735913447020,-500.0,9.252e-05,2]
[347548915,1735913447030,-500.0,9.252e-05,2]
[347548917,1735913447039,-4728.18,9.252e-05,2]
[347548919,1735913447049,-500.0,9.252e-05,2]
[347548921,1735913447058,-500.0,9.253e-05,2]
[347548923,1735913447067,-660.78,9.253e-05,2]
[347548925,1735913447077,-500.0,9.253e-05,2]
[347548927,1735913447087,-500.0,9.253e-05,2]
[347548930,1735913447096,-500.0,9.253e-05,2]
[347548931,1735913447106,-500.0,9.253e-05,2]
[347548933,1735913447115,-500.0,9.253e-05,2]
[347548935,1735913447124,-500.0,9.253e-05,2]
[347548937,1735913447133,-500.0,9.253e-05,2]
[347548938,1735913447143,-446.5095131,9.253e-05,2]
[347548939,1735913447152,-500.0,9.253e-05,2]
[347548940,1735913447161,-500.0,9.253e-05,2]
[347548942,1735913447171,-583.48,9.253e-05,2]
[347548944,1735913447180,-500.0,9.253e-05,2]
[347548946,1735913447188,-182.98104143,9.253e-05,2]
[347548948,1735913447198,-500.0,9.253e-05,2]
[347548950,1735913447207,-500.0,9.253e-05,2]
[347548951,1735913447216,-500.0,9.253e-05,2]
[347548952,1735913447225,-500.0,9.253e-05,2]
[347548953,1735913447234,-500.0,9.253e-05,2]
[347548954,1735913447243,-500.0,9.253e-05,2]
[347548955,1735913447252,-500.0,9.253e-05,2]
[347548956,1735913447262,-500.0,9.253e-05,2]